Cogmind - Beta 13 @@@ ROGUE MODE // 2024.04.08 @ 21:06:23 Player: Phosphophyllite Result: Destroyed by S-10 Pest with Light Assault Rifle Performance ------------- Evolutions (1) 500 Regions Visited (2) 400 Robots Destroyed (29) 145 Value Destroyed (561) 561 Prototype IDs (0) 0 Alien Tech Used (0) 0 Bonus (0) 0 TOTAL SCORE: 1606 Bonus ------- None Cogmind --------- Core Integrity 0/400 Matter 300/300 Energy 87/100 System Corruption 0% Temperature Cool (0) Movement Core (200) Ox3 Location -9/Materials Parts ------- > --- POWER (1) -------- (None) > --- PROPULSION (2) --- (None) > --- UTILITY (4) ------ Small Storage Unit Hardened Light Armor Plating > --- WEAPON (2) ------- (None) > --- INVENTORY (8) ---- Improved Hover Unit Improved Hover Unit Signal Interpreter Improved Targeting Computer ECM Suite Beam Rifle Peak State ------------ > --- POWER ------------ Ion Engine > --- PROPULSION ------- Light Treads Light Treads > --- UTILITY ---------- Small Storage Unit Seismic Detector Light Armor Plating > --- WEAPON ----------- Heavy Assault Rifle Heavy Assault Rifle > --- INVENTORY -------- Light Nuclear Core Improved Hover Unit Improved Hover Unit Signal Interpreter Targeting Computer ECM Suite Hardened Light Armor Plating Mining Laser [Rating: 11] Favorites ----------- Power Ion Engine Engine Ion Engine Power Core Light Nuclear Core Propulsion Light Treads Treads Light Treads Utility Small Storage Unit Device Seismic Detector Storage Small Storage Unit Protection Light Armor Plating Weapon Heavy Assault Rifle Energy Cannon EM Pulse Cannon Ballistic Gun Heavy Assault Rifle Special Weapon Mining Laser Build | -11 -10 -9 ------- Run | Yrd Mat Mat Slots Evolved 2 | . . 2 Power . | . . . Propulsion . | . . . Utility 2 | . . 2 Weapon . | . . . Parts Attached 17 | 7 4 6 Power 2 | 1 . 1 Engine 1 | 1 . . Core 1 | . . 1 Reactor . | . . . Propulsion 3 | 2 . 1 Treads 3 | 2 . 1 Leg . | . . . Wheel . | . . . Hover . | . . . Flight . | . . . Utility 6 | 2 2 2 Device 3 | 1 2 . Storage 1 | 1 . . Processor . | . . . Hackware . | . . . Protection 2 | . . 2 Artifact . | . . . Weapon 6 | 2 2 2 Energy Gun . | . . . Energy Cannon 1 | . . 1 Ballistic Gun 4 | 2 2 . Ballistic Cannon . | . . . Launcher . | . . . Special Weapon 1 | . . 1 Impact Weapon . | . . . Slashing Weapon . | . . . Piercing Weapon . | . . . Special Melee Weapon . | . . . Unidentified Prototypes . | . . . Parts Lost 11 | . 1 10 Power 2 | . . 2 Propulsion 2 | . . 2 Utility 3 | . 1 2 Weapon 4 | . . 4 Highest Loss Streak 8 | . 1 8 To Critical Strikes . | . . . Average Slot Usage (%) 87 | . 96 62 Engine 12 | . 14 7 Treads 24 | . 28 15 Device 9 | . 10 7 Storage 13 | . 14 11 Protection 1 | . . 4 Ballistic Gun 23 | . 28 12 Naked Turns . | . . . Heaviest Build 20 | 15 17 20 Greatest Support 40 | 40 40 40 Greatest Overweight (x) 5 | 2 . 5 Average Overweight (x) . | . . . Largest Inventory Capacity 8 | 8 8 8 Average Capacity 7 | 7 8 8 Most Carried 8 | 8 8 8 Average Carried 7 | 5 7 7 Final Capacity 8 | 8 8 8 Final Carried 8 | 8 8 6 Class Distribution -------------------- 100% | Mutant Dominant Class ---------------- Mutant | -10/Materials Mutant | -9/Materials Resources | -11 -10 -9 ----------- Run | Yrd Mat Mat Matter Collected 602 | 288 251 63 Remotely . | . . . Salvage Created 940 | 144 577 219 Parts 74 | 9 50 15 Haulers Intercepted . | . . . Recyclers Shooed . | . . . Parts Field Recycled . | . . . Retrieved Matter . | . . . Parts Self-Destructed . | . . . Prevented . | . . . Kills | -11 -10 -9 ------- Run | Yrd Mat Mat Combat Hostiles Destroyed 16 | . 10 6 Guns 11 | . 10 1 Cannons 3 | . . 3 AOE 2 | . . 2 Classes Destroyed 8 | 2 5 1 Worker 3 | . 3 . Builder 4 | . 3 1 Tunneler 2 | 2 . . Recycler 1 | 1 . . Watcher 3 | . 3 . Swarmer 5 | . 2 3 Grunt 8 | . 8 . Sentry 3 | . . 3 Best Kill Streak 5 | 3 4 5 Combat Bots Only 5 | . 4 5 Max Kills in Single Turn 2 | 2 1 2 Gunslinging . | . . . Exploded 2 | . . 2 Melee . | . . . Uniques/NPCs Destroyed . | . . . Combat | -11 -10 -9 -------- Run | Yrd Mat Mat Hostile Shots Fired 194 | . 31 163 Missed 50 | . 6 44 Damage Taken 1487 | . 286 1201 Core 435 | . 28 407 Absorbed by Shields . | . . . Core Remaining (%) 94 | 100 88 . Volleys Fired 59 | 3 36 20 Largest 2 | 2 2 2 Hottest 100 | 40 46 100 Shots Fired 105 | 6 72 27 Gun 94 | 6 72 16 Cannon 9 | . . 9 Launcher . | . . . Special 2 | . . 2 Kinetic 94 | 6 72 16 Thermal 2 | . . 2 Explosive . | . . . Electromagnetic 9 | . . 9 Robot Hit Streak 14 | 2 10 14 Robot Miss Streak 3 | 1 3 1 Penetration Max . | . . . Secondary Targets . | . . . Shots Hit Robots 69 | 4 43 22 Core Hits 34 | 4 22 8 Critical Kills . | . . . Critical Parts Destroyed . | . . . Critical Strikes . | . . . Melee Attacks . | . . . Impact . | . . . Slashing . | . . . Piercing . | . . . Sneak Attacks . | . . . Combat Hostiles . | . . . Follow-up Attacks . | . . . Damage Inflicted 1216 | 57 675 484 Guns 927 | 57 675 195 Cannons 146 | . . 146 Explosions 95 | . . 95 Melee . | . . . Ramming . | . . . Kinetic 927 | 57 675 195 Thermal 143 | . . 143 Explosive . | . . . Electromagnetic 146 | . . 146 Impact . | . . . Slashing . | . . . Piercing . | . . . Highest Corruption . | . . . Average Corruption . | . . . Corruption Purged . | . . . Corruption Blocked . | . . . Overload Shots . | . . . Overflow Damage 5 | . . 5 Projectiles 5 | . . 5 Explosions . | . . . Melee . | . . . Knockbacks . | . . . Impact . | . . . Kinetic . | . . . Secondary . | . . . Self-Inflicted Damage 6 | . . 6 Shots 1 | . . 1 Rammed . | . . . Targets Rammed . | . . . Kicked . | . . . Crushed . | . . . Highest Temperature 113 | . 15 113 Average Temperature 30 | . 3 38 Received Heat Transfer 375 | . 123 252 Siege Activations . | . . . Robots Corrupted . | . . . Combat Hostiles . | . . . Parts Fried . | . . . Impact Corruptions . | . . . Robots Melted . | . . . Combat Hostiles . | . . . Parts Melted . | . . . Heat Transferred 250 | . . 250 Parts Sabotaged . | . . . Parts Stolen . | . . . Parts Stripped . | . . . Power Chain Reactions 1 | . . 1 Alert | -11 -10 -9 ------- Run | Yrd Mat Mat Peak Influence 184 | 15 184 184 Initial 9 | . 9 1 Average 45 | 3 48 47 Maximum Alert Level . | . . . Low Security (%) 100 | 100 100 100 Level 1 . | . . . Level 2 . | . . . Level 3 . | . . . Level 4 . | . . . Level 5 . | . . . High Security . | . . . Max Security . | . . . Squads Dispatched 2 | . 2 . Investigation 2 | . 2 . Extermination . | . . . Reinforcement . | . . . Assault . | . . . Garrison . | . . . Intercept . | . . . Searches Triggered . | . . . Construction Impeded . | . . . Haulers Reinforced . | . . . Active Scanning Responses . | . . . Cargo Convoy Interrupts . | . . . Stealth | -11 -10 -9 --------- Run | Yrd Mat Mat Distress Signals 2 | . . 2 Communications Jammed . | . . . Distress Signals . | . . . Times Spotted 34 | . 20 14 Peak Tracking Total 6 | . 5 6 Tactical Retreats 4 | . 1 3 Traps | -11 -10 -9 ------- Run | Yrd Mat Mat Traps Triggered 1 | . 1 . Indirectly . | . . . Trap Hack Attempts . | . . . Triggered . | . . . Disarmed . | . . . Reprogrammed . | . . . Reused . | . . . Traps Extracted . | . . . Installed . | . . . Triggered . | . . . Machines | -11 -10 -9 ---------- Run | Yrd Mat Mat Machines Disabled . | . . . Max in Single Turn . | . . . Machines Repaired . | . . . Machines Dismantled . | . . . Machines Sabotaged . | . . . Overloaded Fab Kills . | . . . Hacking | -11 -10 -9 --------- Run | Yrd Mat Mat Machines Accessed 2 | . 2 . Terminals 2 | . 2 . Fabricators . | . . . Repair Stations . | . . . Recycling Units . | . . . Scanalyzers . | . . . Garrison Access . | . . . Total Hacks 6 | . 6 . Successful 3 | . 3 . Failed 3 | . 3 . Catastrophic . | . . . Database Lockouts . | . . . Manual 6 | . 6 . Terminals 6 | . 6 . Fabricators . | . . . Repair Stations . | . . . Recycling Units . | . . . Scanalyzers . | . . . Garrison Access . | . . . Terminal Hacks 1 | . 1 . Unreport Threat 1 | . 1 . Fabricator Hacks . | . . . Repair Station Hacks . | . . . Recycling Unit Hacks . | . . . Scanalyzer . | . . . Garrison Access Hacks . | . . . Unauthorized Hacks 2 | . 2 . Terminals 2 | . 2 . Botnet 2 | . 2 . Fabricators . | . . . Repair Stations . | . . . Recycling Units . | . . . Scanalyzers . | . . . Garrison Access . | . . . Data Cores Recovered . | . . . Used . | . . . Hacking Detections 1 | . 1 . Full Trace Events 1 | . 1 . Feedback Events . | . . . Feedback Blocked . | . . . Robot Schematics Acquired . | . . . Robots Built . | . . . Authchips . | . . . Time . | . . . Total Robot Build Rating . | . . . Part Schematics Acquired . | . . . Parts Built . | . . . Authchips . | . . . Time . | . . . Total Part Build Rating . | . . . Parts Repaired . | . . . Time . | . . . Parts Recycled . | . . . Recycled Matter . | . . . Retrieved Matter . | . . . Retrieved Components . | . . . Parts Scanalyzed . | . . . Part Schematics Acquired . | . . . Parts Damaged . | . . . Bothacking | -11 -10 -9 ------------ Run | Yrd Mat Mat Used RIF Installer . | . . . Robots Hacked . | . . . Non-combat . | . . . Combat . | . . . Robot Hacks Applied . | . . . Relay Couplers Released . | . . . Fabnet Peak Effective % . | . . . Robots Rewired . | . . . Allies Hacked . | . . . Hacks Repelled . | . . . Allies | -11 -10 -9 -------- Run | Yrd Mat Mat Total Allies . | . . . Largest Group . | . . . Highest-Rated Group . | . . . Highest-Rated Ally . | . . . Total Orders . | . . . Ally Attacks . | . . . Total Damage . | . . . Kills . | . . . Allies Corrupted . | . . . Allies Melted . | . . . Intel | -11 -10 -9 ------- Run | Yrd Mat Mat Robot Analysis Total . | . . . Derelict Logs Recovered . | . . . Drone Launches . | . . . Drone Recoveries . | . . . Exploration | -11 -10 -9 ------------- Run | Yrd Mat Mat Turns Passed 1138 | 85 766 287 Spaces Moved 534 | 43 350 141 Core 65 | 21 . 44 Treads 469 | 22 350 97 Legs . | . . . Wheels . | . . . Hover . | . . . Flight . | . . . Fastest Speed 50 | 50 160 100 Average Speed 155 | 127 160 154 Slowest Speed 300 | 160 160 300 Overloaded Moves . | . . . Propulsion Burnouts . | . . . Robots Hopped . | . . . Cave-ins Triggered . | . . . Exploration Rate (%) 19 | 4 40 13 Regions Visited 2 Branch Regions . Pre-discovered Areas . | . . . Known Exits Taken . | . . . Unknown Exits Taken 2 | 1 1 . Scrap Searched . | . . . Spaces Dug . | . . . Terrain Destroyed 2 | . . 2 Melee . | . . . Projectile . | . . . AOE 2 | . . 2 Terrain Rammed . | . . . Walls Destroyed . | . . . Machines Disabled . | . . . Actions | -11 -10 -9 --------- Run | Yrd Mat Mat Total 736 | 67 489 180 Wait 88 | . 80 8 Move 532 | 42 349 141 Hop . | . . . Pick Up 28 | 15 10 3 Fast Attach 2 | . 1 1 Attach 14 | 7 3 4 Detach . | . . . Swap 1 | . . 1 Drop 12 | . 10 2 Fire 59 | 3 36 20 Melee . | . . . Ram . | . . . Kick . | . . . Crush . | . . . Escape Stasis . | . . . Rewire . | . . . Trap . | . . . Miscellaneous . | . . . Route ------- -11/Scrapyard -10/Materials (discovered 2 exits: [*Mat] / [Sub]) -9/Materials History --------- Turn | Location | Event 20 | -11/Scrapyard | Discovered new exit (range 16) 86 | -11/Scrapyard | Entered Materials 318 | -10/Materials | Build established: Mutant 458 | -10/Materials | Discovered new exit (range 14) 840 | -10/Materials | Discovered new exit (range 9) 852 | -10/Materials | Entered another Materials area 852 | -9/Materials | Evolved 2 slots: Utility x2 1073 | -9/Materials | Core integrity fell below 50% 1085 | -9/Materials | Lost 8 parts (1p2n2u3w) 1091 | -9/Materials | Core integrity fell below 20% 1139 | -9/Materials | Destroyed by S-10 Pest with Light Assault Rifle Last Messages --------------- 01080_ R-06 Scavenger collects Imp. Ion Engine. 01086_ Acquired EM Pulse Cannon. 01089_ Chain reaction triggered in Lgt. Ion Engine. 01089_ S-10 Pest destroyed. 01091_ R-06 Scavenger collects Wheel. 01098_ Destroyed Flight Unit. 01098_ S-10 Pest destroyed. 01104_ W-16 Scout sends out distress signal. 01107_ Critical hit (Burn: +37). 01111_ Y-45 Defender destroyed. 01114_ Lgt. Nuclear Core destroyed. 01115_ Y-45 Defender destroyed. 01121_ Acquired 15 matter. 01124_ Acquired 10 matter. 01130_ EM Pulse Cannon destroyed. 01134_ R-06 Scavenger collects Lgt. Armor Plating. 01134_ R-06 Scavenger collects Lgt. Ion Engine. 01137_ U-05 Engineer builds a Wall. 01138_ R-06 Scavenger collects Beam Rifle. 01138_ Acquired Beam Rifle. Map ----- +----------------------------------------------------+ | ?????????# #???????????????????? | | ?????????# #???????????????????? | | ?????????# #???????????????????? | | ?????????# #???????????????????? | | ?????????# #???????????????????? | | ?????????# #???????????????????? | | ?????????# #???????????????????? | | ?????????# #???????????????????? | | ?????????#####+##########?????????????? | | ??????????# ????????? | | ??????????# #####???????????????? | | ??????????# #???????????????????? | | ??????????# ######???????????????????? | | ??????????# #????????????????????????? | | ??????????# #????????????????????????? | | ??????????# #????????????????????????? | | ??????????# #????????????????????????? | | ??????????# #????########????????????? | | ??????????# #????#!!]]**#????????????? | | ??????????# #???##!! ]**#????????????? | | ??????????# #???#"% #????????????? | | ???######## ###### w #####????????? | | ???# # r u ????? | | ???# # =*= ??? | | ???# %+ ! s##################???? | | ???# # % @%r#????????????????????? | | ???# # ! ##???????????????????? | | ???# # ########????????????? | | ???######## +????????????? | | ???# """" + #####?????????????? | | ???# """" # #?????????????????? | | ???? """" # #?????????????????? | | ???? ?# #?????????????????? | | ???#= ?# #?????????????????? | | ???# !??# #?????????????????? | | ???#####??####### ##?????????????????? | | ????????????????# #??????????????????? | | ????????######### #??????????????????? | | ???????? ## #??????????????????? | | ????????"" """ ## ##?????????????????? | | ???????""" """ # #?????????????????? | | ?????# """ """ + #?????????????????? | | ?????# # ! !#?????????? ##????? | | ?????# # ######### #????? | | ?????# ## ### #????? | | ?????# ## #?# +????? | | ?????############ #?# ##### #????? | | ????????????????# #?# #?????????????? | | ?????????????#### ### #?????????????? | | ?????????????# #?????????????? | +----------------------------------------------------+ Best States ------------- Heat Dissipation 28 Energy Generation 14 Energy Capacity 250 Matter Stores 300 Matter Capacity 300 Sight Range 16 Terrain Scan Density 10 Armor Coverage 150 Evasion (%) 50 Recoil Reduction 2 Item Schematics ----------------- None Robot Schematics ------------------ None Fabricated ------------ Nothing Alien Tech Used ----------------- None Achievements -------------- None Challenges ------------ None Game ------ Seed GlidesysImpulseRefractor Manual? 0 Play Time 00:16:37 Cumulative 13.4 hours Start 2024.04.08 @ 20:45:27 End 2024.04.08 @ 21:06:23 Sessions 1 Manual Loads 0 Difficulty Rogue Special Mode None Game No. 22 Rogue 22 Adventurer 0 Explorer 0 Win Type - Total 0 Types 0/0/0/0/0/0/0/0/0 Lore% 17 Gallery% 21 Achievement% 15 Wizard Run 0 Options --------- Layout 0 ASCII 0 Keyboard 0 Movement Mouse Keybinds 0 Fullscreen 1 Font 24/Smallcaps Map View 76x50 Zoom Use 0% Tactical HUD 1 Map Filters NONE Filters NONE Steam 1 RUN: 778101b5-ba47-4047-bea3-6bef3bdbcaee